bitfinex/quotes_SOLUSD_20251204
["timestamp","ask_amount","ask_price","bid_price","bid_amount"]
[1764806935032,0.9,144.98,144.97,3.99761818]
[1764806935328,0.9,144.98,144.95,6.89882994]
[1764806935329,0.9,144.98,144.96,3.99761818]
[1764806936024,0.9,144.98,144.97,3.99761818]
[1764806936616,0.2,144.98,144.97,3.99761818]
[1764806936815,0.9,144.98,144.97,3.99761818]
[1764806937230,0.2,144.98,144.97,3.99761818]
[1764806940827,0.2,144.98,144.96,3.99761818]
[1764806941154,7.79757386,144.98,144.96,3.99761818]
[1764806941722,0.7,144.97,144.95,11.61761818]
[1764806941912,7.59810284,144.97,144.95,11.61761818]
[1764806943316,7.59810284,144.97,144.92,14.56564512]
[1764806943317,0.7,144.96,144.92,15.18005594]
[1764806943520,0.7,144.96,144.95,3.99761818]
[1764806943736,0.7,144.96,144.94,3.99761818]
[1764806943931,0.7,144.96,144.93,3.99761818]
[1764806944633,0.7,144.96,144.94,3.99761818]
[1764806944823,6.89810284,144.97,144.94,3.99761818]
[1764806945024,7.59810284,144.97,144.95,3.99761818]
[1764806946042,0.7,144.96,144.95,3.99761818]
[1764806946242,7.59810284,144.97,144.95,3.99761818]
[1764806948829,7.59810284,144.97,144.93,0.66]
[1764806948830,7.59810284,144.97,144.94,3.99761818]
[1764806949346,7.59810284,144.97,144.95,3.99761818]
[1764806950052,6.89810284,144.97,144.95,3.99761818]
[1764806950259,7.59810284,144.97,144.96,3.99761818]
[1764806950550,7.59810284,144.97,144.95,3.99761818]
[1764806951749,6.89810284,144.97,144.92,13.42163193]
[1764806951934,0.7,144.96,144.92,3.99761818]
[1764806952326,0.7,144.96,144.92,4.70761818]
[1764806952545,0.7,144.96,144.92,0.71]
[1764806952741,0.7,144.96,144.92,4.70761818]
[1764806953140,6.89893066,144.95,144.93,3.99761818]
[1764806953547,7.56893066,144.95,144.93,3.99761818]
[1764806958133,7.56893066,144.95,144.94,0.71]
[1764806958134,6.89893066,144.95,144.94,0.71]
[1764806958538,6.89893066,144.95,144.93,3.99761818]
[1764806958838,6.89893066,144.95,144.93,4.70761818]
[1764806959360,7.09755125,144.98,144.94,4.70761818]
[1764806959541,7.09755125,144.98,144.96,3.99761818]
[1764806959739,7.76755125,144.98,144.95,4.70761818]
[1764806960236,7.76755125,144.98,144.94,7.60931586]
[1764806960450,7.76755125,144.98,144.95,3.99761818]
[1764806960651,7.76755125,144.98,144.94,7.60931586]
[1764806960856,7.76755125,144.98,144.95,3.99761818]
[1764806961957,7.76755125,144.98,144.95,4.70761818]
[1764806962156,0.2,144.98,144.97,3.99761818]
[1764806962453,7.0975031,144.98,144.96,0.71]
[1764806962653,7.7675031,144.98,144.95,3.99761818]
[1764806963238,7.0975031,144.98,144.95,3.99761818]
[1764806963442,0.67,144.97,144.95,3.99761818]
[1764806963860,7.56828545,144.97,144.94,7.62]
[1764806964065,7.56828545,144.97,144.95,3.99761818]
[1764806964445,7.56828545,144.97,144.95,2.55852829]
[1764806964656,7.56828545,144.97,144.93,17.018864]
[1764806964841,0.67,144.96,144.92,10.88852829]
[1764806965946,6.89893066,144.95,144.92,10.17852829]
[1764806966148,6.89893066,144.95,144.92,10.88852829]
[1764806966348,7.56893066,144.95,144.92,10.88852829]
[1764806966745,7.56893066,144.95,144.93,2.55852829]
[1764806966960,6.89893066,144.95,144.93,2.55852829]
[1764806968062,0.67,144.96,144.93,2.55852829]
[1764806971871,0.67,144.96,144.92,8.33]
[1764806971872,6.89893066,144.95,144.92,8.33]
[1764806972079,6.89893066,144.95,144.92,3.26852829]
[1764806972281,6.89893066,144.95,144.93,2.55852829]
[1764806974656,6.89893066,144.95,144.93,3.26852829]
[1764806975969,0.67,144.96,144.92,3.26852829]
[1764806976267,0.67,144.96,144.93,2.55852829]
[1764806976773,24.14292612,144.97,144.94,0.71]
[1764806976967,24.14292612,144.97,144.94,3.26852829]
[1764806977382,6.89797889,144.97,144.95,2.55852829]
[1764806977578,6.89797889,144.97,144.95,3.26852829]
[1764806978661,0.67,144.96,144.93,2.55852829]
[1764806978867,0.67,144.96,144.93,3.23852829]
[1764806979088,0.67,144.96,144.94,2.55852829]
[1764806979282,7.56797889,144.97,144.94,2.55852829]
[1764806979664,7.56797889,144.97,144.94,3.23852829]
[1764806981180,6.89893066,144.95,144.91,3.23852829]
[1764806981559,24.14625732,144.95,144.91,3.23852829]
[1764806981764,24.81625732,144.95,144.92,0.68]
[1764806982063,24.81625732,144.95,144.91,2.55852829]
[1764806982274,24.81625732,144.95,144.92,0.68]
[1764806982785,24.81625732,144.95,144.92,3.23852829]
[1764806983687,2.55852829,144.96,144.93,3.26852829]
[1764806983688,6.89845474,144.96,144.93,3.26852829]
[1764806983866,7.61845474,144.96,144.93,3.26852829]
[1764806984179,7.61845474,144.96,144.93,0.71]
[1764806984761,24.14292612,144.97,144.93,3.26852829]
[1764806984984,6.89797889,144.97,144.94,2.55852829]
[1764806985189,6.89797889,144.97,144.94,3.26852829]
[1764806985566,7.61797889,144.97,144.94,3.26852829]
[1764806987483,7.61797889,144.97,144.95,3.26852829]
[1764806987484,6.89797889,144.97,144.95,3.26852829]
[1764806987686,0.2,144.98,144.96,2.55852829]
[1764806987862,7.81758959,144.98,144.95,3.26852829]
[1764806988063,7.81758959,144.98,144.94,2.55852829]
[1764806988064,0.72,144.97,144.94,2.55852829]
[1764806988377,7.81758959,144.98,144.94,3.26852829]
[1764806988569,0.2,144.98,144.95,2.55852829]
[1764806988877,0.92,144.98,144.95,3.26852829]
[1764806989074,7.81753594,144.98,144.95,0.71]
[1764806990087,7.09753594,144.98,144.95,0.71]
[1764806990285,7.81753594,144.98,144.95,0.71]
[1764806991174,7.81753594,144.98,144.94,3.26852829]
[1764806991582,7.81753594,144.98,144.94,2.55852829]
[1764806991776,7.81753594,144.98,144.95,0.71]
[1764806991974,0.72,144.97,144.94,3.26852829]
[1764806993069,7.61842355,144.97,144.92,13.41162259]
[1764806993380,7.61842355,144.97,144.93,3.26852829]
[1764806993583,3.27852829,144.96,144.91,15.98016022]
[1764806993771,3.27852829,144.96,144.91,2.55852829]
[1764806993971,0.72,144.95,144.91,3.26852829]
[1764806994196,0.72,144.95,144.92,3.26852829]
[1764806995088,6.89940665,144.94,144.92,3.26852829]
[1764806997197,6.89940665,144.94,144.92,2.55852829]
[1764806997577,6.89940665,144.94,144.92,3.26852829]
[1764806998173,6.89940665,144.94,144.92,0.71]
[1764806998375,7.61940665,144.94,144.91,2.55852829]
[1764806998779,7.61940665,144.94,144.91,3.26852829]
[1764806998987,6.89898365,144.95,144.92,3.26852829]
[1764806999292,20.5218957,144.97,144.94,2.55852829]
[1764806999293,6.89797889,144.97,144.94,2.55852829]
[1764806999693,6.89797889,144.97,144.95,0.71]
[1764807000093,24.14292612,144.97,144.94,2.55852829]
[1764807000297,24.86292612,144.97,144.94,3.26852829]
[1764807000986,24.86292612,144.97,144.94,0.71]
[1764807001188,24.86292612,144.97,144.93,2.55852829]
[1764807001481,0.72,144.96,144.93,3.26852829]
[1764807001798,0.72,144.96,144.92,3.26852829]
[1764807002202,6.89893066,144.95,144.92,3.26852829]
[1764807002494,24.14625732,144.95,144.91,2.55852829]
[1764807002697,0.72,144.94,144.91,2.55852829]
[1764807002901,0.72,144.94,144.91,3.26852829]
[1764807003088,24.86625732,144.95,144.91,3.26852829]
[1764807003779,24.86625732,144.95,144.91,0.71]
[1764807004128,24.86625732,144.95,144.92,0.71]
[1764807004587,24.86625732,144.95,144.92,3.26852829]
[1764807006481,16.308864,144.91,144.84,5.80163193]
[1764807006678,16.308864,144.91,144.82,3.26852829]
[1764807006679,2.55852829,144.87,144.82,3.26852829]
[1764807007175,17.028864,144.86,144.82,3.26852829]
[1764807007378,17.028864,144.86,144.82,2.55852829]
[1764807007588,17.028864,144.86,144.83,0.71]
[1764807008381,6.90369347,144.85,144.83,0.71]
[1764807010680,6.90369347,144.85,144.83,3.26852829]
[1764807010879,6.90369347,144.85,144.83,0.71]
[1764807011101,23.21212441,144.86,144.83,3.26852829]
[1764807011290,17.2566925,144.88,144.84,3.26852829]
[1764807011491,22.61777789,144.87,144.84,3.26852829]
[1764807012088,22.61777789,144.87,144.84,0.71]
[1764807012283,22.61777789,144.87,144.85,0.71]
[1764807012511,6.90274038,144.87,144.85,0.71]
[1764807014293,18.86739229,144.91,144.86,2.55852829]
[1764807014492,34.49731111,144.94,144.87,2.55852829]
[1764807014493,6.90131124,144.9,144.87,2.55852829]
[1764807014693,13.80587629,144.9,144.87,2.55852829]
[1764807014990,6.90131124,144.9,144.88,0.72]
[1764807015582,6.90131124,144.9,144.87,2.55852829]
[1764807015808,6.90131124,144.9,144.87,3.27852829]
[1764807018807,6.90131124,144.9,144.88,0.72]
[1764807019695,6.90131124,144.9,144.87,2.55852829]
[1764807019882,6.90131124,144.9,144.87,3.27852829]
[1764807020086,7.59131124,144.9,144.87,3.27852829]
[1764807020906,6.90131124,144.9,144.87,2.55852829]
[1764807021097,6.90131124,144.9,144.88,0.72]
[1764807022194,17.24888557,144.94,144.89,18.86739229]
[1764807022398,17.24888557,144.94,144.9,2.55852829]
[1764807022610,17.93888557,144.94,144.9,3.27852829]
[1764807023005,6.90022161,144.93,144.9,3.27852829]
[1764807023201,6.90022161,144.93,144.9,0.72]
[1764807023405,7.59022161,144.93,144.9,0.72]
[1764807024492,7.59022161,144.93,144.9,4.72040213]
[1764807024812,24.14829222,144.94,144.9,4.72040213]
[1764807025018,24.83829222,144.94,144.9,4.72040213]
[1764807025508,28.14869435,144.94,144.9,0.72]
[1764807025721,28.83869435,144.94,144.9,0.72]
[1764807025919,24.83829222,144.94,144.9,4.72040213]
[1764807026633,24.14829222,144.94,144.9,4.00040213]
[1764807026811,6.89940665,144.94,144.91,0.72]
[1764807028718,6.90317267,144.95,144.93,4.00040213]
[1764807028918,0.2,144.98,144.94,4.72040213]
[1764807029523,0.2,144.98,144.95,0.72]
[1764807029823,0.2,144.98,144.96,8.80994492]
[1764807030111,0.2,144.98,144.97,12.81034705]
[1764807030319,0.2,144.98,144.96,0.72]
[1764807030705,7.09751378,144.98,144.96,0.72]
[1764807031119,7.09751378,144.98,144.96,4.72040213]
[1764807032713,7.09751378,144.98,144.96,4.00040213]
[1764807033021,7.78751378,144.98,144.96,4.00040213]
[1764807033319,7.09751378,144.98,144.96,4.00040213]
[1764807034222,0.2,144.98,144.97,4.72040213]
[1764807034526,0.2,144.98,144.96,4.72040213]
[1764807036013,0.2,144.98,144.97,4.00040213]
[1764807036706,0.2,144.98,144.96,4.72040213]
[1764807037529,0.2,144.98,144.97,4.72040213]
[1764807037911,0.2,144.98,144.97,4.00040213]
[1764807038420,7.78767853,144.98,144.95,7.62]
[1764807038607,7.09767853,144.98,144.95,12.34040213]
[1764807039448,7.09767853,144.98,144.96,4.00040213]
[1764807040211,7.09767853,144.98,144.95,8.34]
[1764807040437,25.04143628,144.98,144.95,11.62040213]
[1764807040611,7.09767853,144.98,144.96,4.00040213]
[1764807041450,7.09767853,144.98,144.95,12.32040213]
[1764807041619,0.2,144.98,144.97,4.00040213]
[1764807042323,0.2,144.98,144.97,4.70040213]
[1764807047124,0.2,144.98,144.96,4.00040213]
[1764807047433,0.2,144.98,144.97,4.00040213]
[1764807047624,0.2,144.98,144.97,4.67040213]
[1764807049415,0.2,144.98,144.97,4.00040213]
[1764807050338,0.2,144.98,144.97,4.67040213]
[1764807051029,0.2,144.98,144.96,6.89814611]
[1764807051234,0.2,144.98,144.97,0.67]
[1764807051438,0.2,144.98,144.97,4.67040213]
[1764807052547,0.2,144.98,144.97,0.67]
[1764807052849,0.2,144.98,144.97,4.67040213]
[1764807053224,0.2,144.98,144.97,4.00040213]
[1764807053417,0.2,144.98,144.97,4.67040213]
[1764807055754,0.2,144.98,144.96,4.00040213]
[1764807056048,7.7675031,144.98,144.96,4.00040213]
[1764807057047,7.0975031,144.98,144.96,4.00040213]
[1764807057351,7.7675031,144.98,144.96,4.00040213]
[1764807058545,0.67,144.97,144.95,4.00040213]
[1764807059628,7.0975031,144.98,144.96,4.00040213]
[1764807060047,0.2,144.98,144.97,4.00040213]
[1764807060251,0.2,144.98,144.97,4.67040213]
[1764807060423,0.2,144.98,144.97,0.67]
[1764807060626,0.2,144.98,144.95,7.56868547]
[1764807060837,0.2,144.98,144.96,4.00040213]
[1764807061038,0.2,144.98,144.97,4.00040213]
[1764807061243,0.2,144.98,144.97,4.67040213]
[1764807062650,0.2,144.98,144.97,4.00040213]
[1764807063538,0.2,144.98,144.97,4.67040213]
[1764807063743,0.2,144.98,144.97,4.00040213]
[1764807064523,7.76766232,144.98,144.95,4.00040213]
[1764807064745,7.09766232,144.98,144.96,4.00040213]
[1764807065430,7.09766232,144.98,144.96,4.67040213]
[1764807070055,7.09766232,144.98,144.95,0.67]
[1764807070260,0.67,144.97,144.93,0.67]
[1764807070472,0.67,144.97,144.92,16.308864]
[1764807070634,4.00040213,144.95,144.9,0.67]
[1764807070829,4.00040213,144.96,144.91,4.00040213]
[1764807071142,4.00040213,144.94,144.89,4.00040213]
[1764807071341,0.67,144.93,144.89,4.00040213]
[1764807071547,0.67,144.93,144.9,4.00040213]
[1764807072259,7.57035253,144.93,144.9,4.00040213]
[1764807072454,7.57035253,144.93,144.89,0.67]
[1764807072643,7.57035253,144.93,144.9,4.00040213]
[1764807073344,7.57035253,144.93,144.9,4.67040213]
[1764807073654,7.57035253,144.93,144.91,4.00040213]
[1764807074067,11.59980878,144.94,144.9,0.67]
[1764807074760,0.7,144.93,144.9,0.67]
[1764807074959,7.60029559,144.93,144.9,0.67]
[1764807075537,6.90029559,144.93,144.9,0.67]
[1764807075861,7.60029559,144.93,144.9,0.67]
[1764807076173,11.60069772,144.93,144.89,0.67]
[1764807081467,4.00040213,144.92,144.89,0.67]
[1764807081862,7.60029559,144.93,144.89,0.67]
[1764807082060,10.90069772,144.93,144.89,0.67]
[1764807082371,10.90069772,144.93,144.83,6.47163193]
[1764807082372,4.00040213,144.9,144.83,6.47163193]
[1764807082677,4.00040213,144.87,144.83,0.67]
[1764807083063,4.70040213,144.87,144.83,0.67]
[1764807083281,4.00040213,144.85,144.82,7.62]
[1764807083568,6.90321689,144.86,144.83,0.67]
[1764807084280,10.90361902,144.86,144.83,0.67]
[1764807084457,0.7,144.85,144.82,7.62]
[1764807084657,4.70040213,144.85,144.82,7.62]
[1764807084857,4.00040213,144.84,144.81,0.77]
[1764807085055,4.70040213,144.85,144.81,0.77]
[1764807085377,0.7,144.85,144.81,0.77]
[1764807085549,6.90417011,144.84,144.81,0.77]
[1764807085867,6.90372004,144.85,144.81,0.77]
[1764807086274,7.60372004,144.85,144.81,0.77]
[1764807086443,6.90372004,144.85,144.81,0.77]
[1764807086649,10.16684537,144.85,144.81,0.77]
[1764807088248,6.90464682,144.83,144.81,0.1]
[1764807088758,7.60464682,144.83,144.81,0.1]
[1764807089356,0.7,144.82,144.81,0.1]
[1764807089550,3.26312533,144.82,144.81,0.1]
[1764807090265,7.6051236,144.82,144.81,0.1]
[1764807090874,9.46824893,144.82,144.81,0.1]
[1764807091468,7.60477984,144.83,144.81,0.1]
[1764807091678,10.16790517,144.83,144.81,0.1]
[1764807092170,6.90477984,144.83,144.81,0.1]
[1764807092768,2.76405348,144.86,144.82,2.56312533]
[1764807093078,6.90359244,144.86,144.83,0.67]
[1764807093473,6.90359244,144.86,144.81,7.00543819]
[1764807093665,2.56312533,144.82,144.81,0.1]
[1764807094069,3.26312533,144.82,144.81,0.1]
[1764807095070,10.16824893,144.82,144.81,0.1]
[1764807096477,6.9051236,144.82,144.81,0.1]
[1764807096659,9.46824893,144.82,144.81,0.1]
[1764807097374,6.90478924,144.83,144.81,0.1]
[1764807097574,9.46791457,144.83,144.81,0.1]
[1764807099189,2.56312533,144.82,144.81,0.1]
[1764807100071,3.26312533,144.82,144.81,0.1]
[1764807100865,6.90560044,144.81,144.8,0.1]
[1764807101191,10.16872577,144.81,144.8,1e-08]
[1764807101558,12.93392572,144.81,144.8,1e-08]
[1764807103272,38.05273464,144.81,144.8,1e-08]
[1764807103472,38.05273464,144.81,144.78,0.1]
[1764807103473,16.308864,144.79,144.78,0.1]
[1764807103680,26.49198933,144.79,144.78,0.1]
[1764807103992,27.19198933,144.79,144.78,1e-08]
[1764807104172,29.95757165,144.79,144.78,1e-08]
[1764807104970,36.86412597,144.79,144.78,1e-08]
[1764807106181,34.09854365,144.79,144.78,1e-08]
[1764807107592,36.86412597,144.79,144.78,1e-08]
[1764807108365,62.94045669,144.79,144.75,0.1]
[1764807108593,5.12625066,144.76,144.75,0.1]
[1764807108896,12.74625066,144.76,144.75,0.1]
[1764807109096,37.45449065,144.76,144.68,0.1]
[1764807109263,2.56312533,144.71,144.69,0.66]
[1764807109790,34.18136532,144.76,144.69,0.66]
[1764807109791,2.56312533,144.73,144.69,0.66]
[1764807109970,2.56312533,144.74,144.69,0.66]
[1764807110174,2.56312533,144.73,144.69,0.66]
[1764807110667,2.56312533,144.71,144.69,0.66]
[1764807111285,2.56312533,144.71,144.68,0.1]
[1764807111485,2.56312533,144.71,144.68,0.76]
[1764807111994,26.74775771,144.72,144.68,0.76]
[1764807112183,2.56312533,144.71,144.68,0.76]
[1764807112580,9.47434193,144.7,144.68,0.76]
[1764807113275,9.47434193,144.7,144.68,0.1]
[1764807113276,2.56312533,144.69,144.68,0.1]
[1764807114392,2.56312533,144.69,144.68,0.76]
[1764807114976,9.47445299,144.69,144.68,0.76]
[1764807116876,9.47445299,144.69,144.68,0.1]
[1764807117073,10.18445299,144.69,144.68,0.1]
[1764807118180,27.46277215,144.69,144.66,0.1]
[1764807118479,2.56312533,144.67,144.66,0.1]
[1764807118911,3.27312533,144.67,144.66,0.1]
[1764807119075,10.18540845,144.67,144.66,0.1]
[1764807121094,17.80540845,144.67,144.66,0.1]
[1764807121296,2.56312533,144.62,144.59,0.66]
[1764807121478,2.56312533,144.6,144.57,0.1]
[1764807121680,2.56312533,144.6,144.58,0.66]
[1764807121889,2.56312533,144.59,144.58,0.66]
[1764807122090,2.56312533,144.59,144.57,0.1]
[1764807122385,3.27312533,144.58,144.57,0.1]
[1764807122582,16.308864,144.57,144.54,0.1]
[1764807122794,5.12625066,144.55,144.54,0.1]
[1764807123101,12.7542721,144.55,144.54,0.1]
[1764807123301,6.91736187,144.57,144.54,0.76]
[1764807123505,2.56312533,144.55,144.54,0.76]
[1764807124180,3.27312533,144.55,144.54,0.1]
[1764807124983,53.20245701,144.55,144.54,1e-08]
[1764807125207,40.38683036,144.55,144.54,1e-08]
[1764807125390,8.80994492,144.54,144.51,0.1]
[1764807125592,2.56312533,144.52,144.51,0.1]
[1764807126506,6.90002306,144.52,144.51,0.76]
[1764807126909,6.90002306,144.52,144.51,0.1]
[1764807127086,13.81948057,144.52,144.51,0.1]
[1764807127282,14.52948057,144.52,144.51,0.1]
[1764807131489,23.33942549,144.52,144.51,1e-08]
[1764807131690,23.33942549,144.52,144.44,0.66]
[1764807131691,16.308864,144.49,144.44,0.66]
[1764807131909,6.90002306,144.45,144.39,25.11880892]
[1764807132094,6.90002306,144.45,144.36,17.31750466]
[1764807132095,6.90002306,144.4,144.38,0.66]
[1764807132611,6.90002306,144.41,144.38,0.66]
[1764807132916,6.90002306,144.46,144.4,13.8248665]
[1764807133117,6.90002306,144.46,144.41,6.90002306]
[1764807133291,6.90002306,144.46,144.41,7.57002306]
[1764807133487,6.90002306,144.46,144.42,0.67]
[1764807134307,6.92281066,144.45,144.42,0.67]
[1764807135317,6.90002306,144.43,144.39,0.67]
[1764807135525,6.90002306,144.4,144.37,0.67]
[1764807135699,6.90002306,144.38,144.37,0.67]
[1764807136105,6.90002306,144.38,144.33,13.82851266]
[1764807136106,6.90002306,144.38,144.35,0.67]
[1764807136323,6.90002306,144.37,144.35,0.67]
[1764807136904,23.948864,144.43,144.35,0.67]
[1764807137211,6.90002306,144.38,144.35,0.67]
[1764807137614,6.90002306,144.4,144.35,0.67]
[1764807138199,6.92432047,144.42,144.38,6.90002306]
[1764807138627,13.823313,144.44,144.39,0.67]
[1764807138814,13.823313,144.44,144.39,7.57002306]
[1764807139005,13.823313,144.44,144.39,0.67]
[1764807139201,13.823313,144.44,144.4,0.67]
[1764807139515,6.92328994,144.44,144.4,0.67]
[1764807139713,6.90002306,144.43,144.39,0.67]
[1764807140425,6.90002306,144.41,144.39,0.67]
[1764807140631,6.90002306,144.4,144.37,0.67]
[1764807141002,6.90002306,144.41,144.37,0.67]
[1764807141321,13.82461514,144.42,144.37,7.57002306]
[1764807141629,13.82461514,144.42,144.37,0.67]
[1764807141820,6.90002306,144.41,144.38,0.67]
[1764807142023,6.90002306,144.4,144.37,0.67]
[1764807142223,6.90002306,144.39,144.37,0.67]
[1764807142815,6.90002306,144.4,144.37,0.67]
[1764807143116,6.90002306,144.41,144.37,0.67]
[1764807143310,13.82523081,144.4,144.37,0.67]
[1764807144632,31.1382502,144.4,144.37,0.67]
[1764807144935,6.90002306,144.39,144.37,0.67]
[1764807145225,31.1382502,144.4,144.37,0.67]
[1764807145408,6.90002306,144.42,144.37,7.57002306]
[1764807145915,6.90002306,144.42,144.38,0.67]
[1764807146755,6.90002306,144.42,144.36,6.92697565]
[1764807146935,6.90002306,144.41,144.37,0.67]
[1764807147227,6.90002306,144.39,144.37,0.67]
[1764807147420,6.92616705,144.38,144.37,0.67]
[1764807148211,6.92585878,144.39,144.37,0.67]
[1764807149406,17.61839697,144.39,144.34,10.69253819]
[1764807149609,10.69253819,144.38,144.35,0.67]
[1764807150233,10.69253819,144.36,144.33,0.67]
[1764807150412,10.69253819,144.35,144.34,0.67]
[1764807150611,10.69253819,144.36,144.34,0.67]
[1764807151516,6.92760651,144.35,144.34,0.67]
[1764807151713,6.92760651,144.35,144.29,6.93044812]
[1764807151927,17.6201447,144.35,144.3,18.29250089]
[1764807152110,6.92760651,144.35,144.31,10.69253819]
[1764807152331,6.92760651,144.35,144.31,11.36253819]
[1764807152511,6.92760651,144.35,144.32,0.67]
[1764807152512,34.93916097,144.35,144.32,0.67]
[1764807152713,10.69253819,144.33,144.3,0.67]
[1764807152923,24.95662278,144.35,144.27,7.66]
[1764807152924,10.69253819,144.31,144.27,7.66]
[1764807153232,10.69253819,144.31,144.29,0.67]
[1764807153432,10.69253819,144.32,144.29,0.67]
[1764807153638,17.62197199,144.32,144.29,0.67]
[1764807153825,6.9294338,144.32,144.29,0.67]
[1764807154267,6.9294338,144.32,144.26,0.67]
[1764807154268,24.2520502,144.32,144.26,0.67]
[1764807154430,0.71,144.36,144.3,10.69253819]
[1764807154635,18.35253819,144.38,144.33,10.69253819]
[1764807154822,6.92568737,144.39,144.36,10.69253819]
[1764807155328,18.32822556,144.39,144.34,0.67]
[1764807155532,17.61822556,144.39,144.34,11.36253819]
[1764807155734,35.64244399,144.39,144.34,0.67]
[1764807155934,35.64244399,144.39,144.35,0.67]
[1764807156329,10.69253819,144.38,144.35,0.67]
[1764807156517,35.64244399,144.39,144.35,0.67]
[1764807157137,24.9499058,144.39,144.35,0.67]
[1764807157336,10.69253819,144.37,144.32,0.67]
[1764807157540,10.69253819,144.37,144.3,36.48134711]
[1764807157541,10.69253819,144.36,144.3,36.48134711]
[1764807157714,17.6201447,144.35,144.3,16.978864]
[1764807157912,10.69253819,144.31,144.27,0.67]
[1764807158118,24.678864,144.34,144.27,0.67]
[1764807158332,24.678864,144.34,144.25,2.96809163]
[1764807158333,10.69253819,144.29,144.25,3.63809163]
[1764807158640,10.69253819,144.26,144.25,2.96809163]
[1764807158817,16.308864,144.31,144.25,3.63809163]
[1764807159025,10.69253819,144.28,144.25,3.63809163]
[1764807159429,7.68,144.3,144.25,2.96809163]
[1764807159430,10.69253819,144.26,144.25,2.96809163]
[1764807159736,6.93192846,144.26,144.25,2.96809163]
[1764807159937,18.33446665,144.26,144.25,2.96809163]
[1764807161315,18.33446665,144.26,144.25,1e-08]
[1764807162941,27.14441157,144.26,144.25,1e-08]
[1764807163125,43.45327557,144.26,144.25,1e-08]
[1764807163439,16.308864,144.23,144.22,1e-08]
[1764807163642,34.68140219,144.23,144.22,1e-08]
[1764807163820,6.93337031,144.23,144.22,1e-08]
[1764807164143,17.6259085,144.23,144.22,1e-08]
[1764807164333,18.3459085,144.23,144.22,1e-08]
[1764807166540,17.6259085,144.23,144.22,1e-08]
[1764807166759,14.61297045,144.24,144.22,0.70000001]
[1764807167068,3.67809163,144.28,144.22,0.70000001]
[1764807167069,2.96809163,144.28,144.23,27.00140219]
[1764807167340,0.71,144.32,144.25,10.69253819]
[1764807167341,10.69253819,144.3,144.25,10.69253819]
[1764807167544,10.69253819,144.3,144.24,0.7]
[1764807167850,10.69253819,144.3,144.25,10.69253819]
[1764807168025,6.93048721,144.29,144.26,0.7]
[1764807169031,10.69253819,144.27,144.22,1e-08]
[1764807169229,10.69253819,144.25,144.22,1e-08]
[1764807169634,10.69253819,144.23,144.22,1e-08]
[1764807170023,18.3359085,144.23,144.22,1e-08]
[1764807172447,8.80994492,144.19,144.11,0.7]
[1764807172745,10.69253819,144.19,144.14,10.69253819]
[1764807173072,31.98679608,144.23,144.18,10.69253819]
[1764807173367,10.69253819,144.22,144.17,10.69253819]
[1764807173566,6.93337031,144.23,144.17,10.69253819]
[1764807173763,6.93337031,144.23,144.13,0.7]
[1764807173764,17.6259085,144.23,144.18,11.39253819]
[1764807174142,10.69253819,144.22,144.19,0.7]
[1764807174338,6.93337031,144.23,144.19,0.7]
[1764807174644,10.69253819,144.21,144.17,0.7]
[1764807174962,24.97679608,144.23,144.18,0.7]
[1764807175161,10.69253819,144.22,144.18,0.7]
[1764807175945,6.93433187,144.21,144.18,0.7]
[1764807176677,10.69253819,144.2,144.16,0.7]
[1764807176969,7.64433187,144.21,144.16,0.7]
[1764807177164,6.93433187,144.21,144.16,0.7]
[1764807177349,34.96269975,144.21,144.16,0.7]
[1764807177947,34.96269975,144.21,144.15,10.69253819]
[1764807177948,34.96606616,144.19,144.13,11.39253819]
[1764807178252,10.69253819,144.18,144.13,11.39253819]
[1764807178565,24.27352797,144.19,144.14,11.39253819]
[1764807178867,34.96606616,144.19,144.14,0.7]
[1764807179067,34.96606616,144.19,144.15,0.7]
[1764807180470,10.69253819,144.18,144.15,0.7]
[1764807180667,24.27352797,144.19,144.15,0.7]
[1764807181371,34.96606616,144.19,144.15,0.7]
[1764807181669,24.27352797,144.19,144.15,0.7]
[1764807181865,6.9352937,144.19,144.15,11.39253819]
[1764807182067,34.66195203,144.26,144.18,10.69253819]